fUST/lending_fUST_20240926
["ID","MTS","AMOUNT","RATE_DAILY","PERIOD"]
[339198568,1727299832183,-150.0,0.00016658,2]
[339198569,1727299832193,-323.83415027,0.0001667,2]
[339198570,1727299832242,-1016.09335043,0.0001667,2]
[339198627,1727299840044,-570.54807351,0.0001667,2]
[339198628,1727299840055,-1687.9630272,0.0001667,2]
[339198629,1727299840065,-327.3117662,0.00016679,2]
[339198630,1727299840074,-287.69255,0.000167,2]
[339198631,1727299840083,-160.0,0.00016759,2]
[339198632,1727299840092,-300.0,0.00016768,2]
[339198633,1727299840102,-300.0,0.00016768,2]
[339198634,1727299840111,-500.0,0.00016769,2]
[339198635,1727299840120,-500.0,0.00016769,2]
[339198636,1727299840129,-500.0,0.00016769,2]
[339198637,1727299840138,-500.0,0.00016769,2]
[339198638,1727299840147,-500.0,0.00016769,2]
[339198639,1727299840158,-500.0,0.00016769,2]
[339198640,1727299840167,-602.61751208,0.00016769,2]
[339198641,1727299840176,-500.0,0.00016769,2]
[339198642,1727299840185,-500.0,0.00016769,2]
[339198643,1727299840194,-500.0,0.00016769,2]
[339198644,1727299840204,-540.95809951,0.00016769,2]
[339198645,1727299840214,-160.0,0.00016769,2]
[339198646,1727299840223,-151.0,0.0001677,2]
[339198647,1727299840233,-151.0,0.0001677,2]
[339198648,1727299840242,-151.0,0.0001677,2]
[339198649,1727299840251,-151.0,0.0001677,2]
[339198650,1727299840260,-151.0,0.0001677,2]
[339198651,1727299840269,-151.0,0.0001677,2]
[339198652,1727299840278,-151.0,0.0001677,2]
[339198653,1727299840287,-151.0,0.0001677,2]
[339198654,1727299840296,-151.0,0.0001677,2]
[339198655,1727299840305,-151.0,0.0001677,2]
[339198656,1727299840315,-151.0,0.0001677,2]
[339198657,1727299840324,-60784.91733029,0.0001677,2]
[339198680,1727299846128,-41.73391271,0.0001677,2]
[339198681,1727299846139,-766.31081354,0.0001677,2]
[339198682,1727299851509,255.0,0.00014594,2]
[339198683,1727299934577,224.95949686,0.00013014,2]
[339198684,1727299934601,103.91287814,0.00013014,2]
[339198692,1727300549611,312.428756,0.00013014,2]
[339198694,1727300749147,-618.70636781,0.00014594,2]
[339198695,1727300749173,-171.741517,0.00014753,2]
[339198696,1727300749196,-548.06513499,0.00015448,2]
[339198697,1727300757120,-1144.21964547,0.00015448,2]
[339198698,1727300835132,-1307.71521954,0.00015448,2]
[339198699,1727300835159,-130.47159842,0.00015537,2]
[339198700,1727300847103,-220.5,0.00015537,2]
[339198704,1727301012173,213.73624245,0.00010959,2]
[339198705,1727301012193,152.65272918,0.00010959,2]
[339198706,1727301012213,17.17102837,0.00010959,2]
[339198713,1727301032273,-1120.38321298,0.00015537,2]
[339198714,1727301032284,-166.666667,0.00015655,2]
[339198715,1727301032293,-153.0,0.00016278,2]
[339198716,1727301032306,-306.0,0.00016478,2]
[339198717,1727301032320,-417.467576,0.00016478,2]
[339198718,1727301032329,-209.0875088,0.000165,2]
[339198719,1727301032338,-300.0,0.00016519,2]
[339198721,1727301032347,-50.13527322,0.00016519,2]
[339198761,1727301038570,-249.86472678,0.00016519,2]
[339198762,1727301038580,-1238.13527346,0.0001652,2]
[339198784,1727301040214,-5908.04670622,0.0001652,2]
[339198785,1727301040224,-3359.62915459,0.0001659,2]
[339198786,1727301040233,-327.3117662,0.0001666,2]
[339198800,1727301040400,-327.31176617,0.00016665,2]
[339198802,1727301040410,-327.31176617,0.0001667,2]
[339198805,1727301040420,-327.31176617,0.00016675,2]
[339198807,1727301040430,-327.31176617,0.0001668,2]
[339198809,1727301040439,-500.0,0.00016689,2]
[339198811,1727301040448,-500.0,0.00016689,2]
[339198813,1727301040457,-500.0,0.00016689,2]
[339198815,1727301040467,-500.0,0.00016689,2]
[339198817,1727301040477,-500.0,0.00016689,2]
[339198819,1727301040486,-557.12117637,0.00016689,2]
[339198821,1727301040495,-500.0,0.00016689,2]
[339198822,1727301040504,-540.95809951,0.00016689,2]
[339198824,1727301040514,-500.0,0.00016689,2]
[339198826,1727301040523,-500.0,0.00016689,2]
[339198828,1727301040532,-500.0,0.00016689,2]
[339198830,1727301040541,-500.0,0.00016689,2]
[339198832,1727301040551,-33015.14643597,0.0001669,2]
[339198834,1727301040562,-7644.5146052,0.0001669,2]
[339198836,1727301040572,-6148.83743648,0.0001669,2]
[339198838,1727301040581,-7501.64784006,0.0001669,2]
[339198840,1727301040593,-2542.45064415,0.0001669,2]
[339198843,1727301040605,-80483.18143198,0.0001669,2]
[339198873,1727301046248,-1022.12551638,0.0001669,2]
[339198874,1727301046307,-16259.92562486,0.0001669,2]
[339198875,1727301046320,-953.012298,0.0001669,2]
[339198876,1727301074147,207.09653655,0.00010959,2]
[339198877,1727301074174,631.83346345,0.00010959,2]
[339198878,1727301090656,296.807318,0.00013014,2]
[339198884,1727301538631,1158.44,0.00021999,120]
[339198885,1727301538942,1158.44,0.00021999,120]
[339198886,1727301539258,1158.44,0.00021999,120]
[339198887,1727301539555,1158.44,0.00021999,120]
[339198888,1727301539809,1158.44,0.00021999,120]
[339198889,1727301540112,1158.44,0.00021999,120]
[339198890,1727301540459,1158.44,0.00021999,120]
[339198891,1727301540768,1158.44,0.00021999,120]
[339198892,1727301541094,1158.44,0.00021999,120]
[339198893,1727301541377,1158.44,0.00021999,120]
[339198894,1727301541690,1158.44,0.00021999,120]
[339198895,1727301541994,1158.44,0.00021999,120]
[339198896,1727301542280,1158.44,0.00021999,120]
[339198897,1727301542583,1158.44,0.00021999,120]
[339198898,1727301542930,1158.44,0.00021999,120]
[339198899,1727301543249,1158.44,0.00021999,120]
[339198900,1727301543585,1158.44,0.00021999,120]
[339198901,1727301543901,1158.44,0.00021999,120]
[339198902,1727301544212,1158.44,0.00021999,120]
[339198903,1727301544543,1158.44,0.00021999,120]
[339198904,1727301544878,1158.44,0.00021999,120]
[339198905,1727301545368,1158.44,0.00021999,120]
[339198906,1727301545688,1158.44,0.00021999,120]
[339198907,1727301546008,1158.54502188,0.00021999,120]
[339198910,1727301744415,281.966952,0.00013014,2]
[339198913,1727301933123,-193.912129,0.00015366,2]
[339198914,1727301933147,-168.236427,0.00015368,2]
[339198915,1727301933168,-300.0,0.00015411,2]
[339198916,1727301933190,-49.10109821,0.00015411,2]
[339198917,1727301955146,-494.23694282,0.00015103,2]
[339198918,1727302001715,1248.63,0.0001411,2]
[339198919,1727302029221,-267.67539833,0.00015102,2]
[339198920,1727302042208,-32.32460167,0.00015102,2]
[339198921,1727302042230,-300.0,0.00015102,2]
[339198922,1727302042255,-492.73593769,0.00015103,2]
[339198928,1727302149268,-300.0,0.00015102,2]
[339198929,1727302149291,-300.0,0.00015102,2]
[339198930,1727302149313,-7210.52908863,0.00015103,2]
[339198973,1727302239009,-300.0,0.00015102,2]
[339198974,1727302239019,-100.4838613,0.00015102,2]
[339198991,1727302240426,-199.5161387,0.00015102,2]
[339198992,1727302240438,-15168.78995566,0.00015103,2]
[339198993,1727302240450,-164.01683,0.00015264,2]
[339198994,1727302240462,-168.236427,0.00015448,2]
[339198995,1727302240474,-168.236427,0.00015528,2]
[339198996,1727302240486,-168.236427,0.00015608,2]
[339198997,1727302240497,-168.236427,0.00015689,2]
[339198998,1727302240508,-168.236427,0.00015769,2]
[339198999,1727302240518,-168.236427,0.00015849,2]
[339199000,1727302240528,-168.236427,0.00015929,2]
[339199001,1727302240539,-164.01683,0.00015949,2]
[339199002,1727302240550,-168.236427,0.00016009,2]
[339199003,1727302240562,-168.236427,0.00016089,2]
[339199004,1727302240572,-7146.18197968,0.00016167,2]
[339199005,1727302240583,-168.236427,0.00016169,2]
[339199006,1727302240595,-153.0,0.000162,2]
[339199007,1727302240607,-457.721239,0.000163,2]
[339199008,1727302240619,-418.0649978,0.00016406,2]
[339199009,1727302240630,-420.0,0.00016526,2]
[339199010,1727302240641,-3359.62915459,0.00016569,2]
[339199011,1727302240654,-327.3117662,0.0001658,2]
[339199012,1727302240667,-327.31176617,0.00016583,2]
[339199013,1727302240678,-327.31176617,0.00016585,2]
[339199014,1727302240690,-327.31176617,0.00016588,2]
[339199015,1727302240703,-327.31176617,0.0001659,2]
[339199016,1727302240713,-277.0,0.00016612,2]
[339199017,1727302240724,-164.01683,0.00016634,2]
[339199018,1727302240735,-500.0,0.00016669,2]
[339199019,1727302240746,-159.27111042,0.00016669,2]
[339199020,1727302240757,-500.0,0.00016669,2]
[339199021,1727302240767,-316.98360006,0.00016669,2]
[339199022,1727302240778,-407.61206309,0.00016669,2]
[339199023,1727302240789,-244.81949574,0.00016669,2]
[339199024,1727302240801,-500.0,0.00016669,2]
[339199025,1727302240811,-500.0,0.00016669,2]
[339199026,1727302240822,-500.0,0.00016669,2]
[339199027,1727302240832,-240.06670179,0.00016669,2]
[339199028,1727302240842,-500.0,0.00016669,2]
[339199029,1727302240853,-500.0,0.00016669,2]
[339199030,1727302240863,-500.0,0.00016669,2]
[339199031,1727302240873,-500.0,0.00016669,2]
[339199032,1727302240883,-500.0,0.00016669,2]
[339199033,1727302240893,-500.0,0.00016669,2]
[339199034,1727302240907,-500.0,0.00016669,2]
[339199035,1727302240918,-540.95809951,0.00016669,2]
[339199036,1727302240928,-500.0,0.00016669,2]
[339199037,1727302240939,-500.0,0.00016669,2]
[339199038,1727302240950,-30991.87215836,0.0001667,2]
[339199039,1727302240968,-20290.08227438,0.0001667,2]
[339199056,1727302246572,-20679.22825786,0.0001667,2]
[339199057,1727302246583,-55840.9838276,0.0001667,2]
[339199058,1727302246595,-999.20004209,0.00016678,2]
[339199059,1727302246607,-160.0,0.00016679,2]
[339199060,1727302246619,-160.0,0.00016679,2]
[339199061,1727302246630,-151.0,0.0001668,2]
[339199062,1727302246642,-33015.14643597,0.0001669,2]
[339199063,1727302246657,-4354.30119834,0.0001669,2]
[339199066,1727302593882,281.087814,0.00013014,2]
[339199087,1727303138151,-500.0,0.00014594,2]
[339199088,1727303138173,-1080.8423597,0.00015082,2]
[339199089,1727303138195,-212.4522037,0.00015358,2]
[339199090,1727303138216,-19.73863374,0.00015444,2]
[339199091,1727303144105,-230.26136626,0.00015444,2]
[339199092,1727303144130,-172.569436,0.00015462,2]
[339199093,1727303144153,-172.569436,0.00015552,2]
[339199094,1727303144176,-172.569436,0.00015641,2]
[339199095,1727303144204,-172.569436,0.00015731,2]
[339199096,1727303144226,-358.56996744,0.00015742,2]
[339199098,1727303163182,267.033423,0.00013014,2]
[339199099,1727303225121,-169.43446526,0.00014594,2]
[339199100,1727303233124,-330.56553474,0.00014594,2]
[339199101,1727303233146,-141.43003256,0.00015742,2]
[339199102,1727303233170,-465.63842015,0.000158,2]
[339199103,1727303233195,-172.569436,0.00015821,2]
[339199104,1727303233218,-172.569436,0.0001591,2]
[339199105,1727303233241,-172.569436,0.00016,2]
[339199106,1727303233267,-172.569436,0.00016089,2]
[339199107,1727303233288,-311.08398564,0.0001617,2]
[339199119,1727303368113,-255.0,0.00014594,2]
[339199144,1727303431703,-298.138363,0.00015584,2]
[339199145,1727303431713,-172.569436,0.00016179,2]
[339199146,1727303431724,-166.0176967,0.00016189,2]
[339199147,1727303431733,-172.569436,0.00016268,2]
[339199148,1727303431743,-500.0,0.00016465,2]
[339199150,1727303431753,-81.54742799,0.00016567,2]
[339199167,1727303439766,-418.45257201,0.00016567,2]
[339199168,1727303439776,-2939.67551031,0.0001659,2]
[339199169,1727303439786,-1000.0,0.0001659,2]
[339199171,1727303439796,-150.0,0.000166,2]
[339199173,1727303439806,-300.0,0.00016688,2]
[339199174,1727303439816,-300.0,0.00016688,2]
[339199175,1727303439825,-997.90440076,0.00016689,2]
[339199176,1727303439834,-2017.013358,0.00016689,2]
[339199177,1727303439843,-415.56296687,0.00016689,2]
[339199178,1727303439853,-282.32867772,0.00016689,2]
[339199179,1727303439863,-164.199017,0.0001669,2]
[339199180,1727303439873,-164.199017,0.0001669,2]
[339199183,1727303439883,-12835.88782621,0.0001669,2]
[339199186,1727303440182,-55527.23572989,0.0001669,2]
[339199187,1727303440192,-53048.9346362,0.0001669,2]
[339199188,1727303440203,-171.37364702,0.00016699,2]
[339199189,1727303440212,-221.88852004,0.00016699,2]
[339199190,1727303440223,-500.0,0.00016699,2]
[339199191,1727303440233,-500.0,0.00016699,2]
[339199192,1727303440244,-335.32844416,0.00016699,2]
[339199193,1727303440254,-5467.36400603,0.000167,2]
[339199194,1727303440266,-16507.57321799,0.000167,2]
[339199195,1727303440276,-110819.7397821,0.000167,2]
[339199196,1727303440286,-164.199017,0.000167,2]
[339199197,1727303440297,-164.199017,0.000167,2]
[339199198,1727303440307,-154.453692,0.000167,2]
[339199199,1727303440318,-151.0,0.000167,2]
[339199200,1727303440328,-174.902434,0.000167,2]
[339199201,1727303440339,-174.902434,0.000167,2]
[339199202,1727303440350,-151.0,0.000167,2]
[339199203,1727303440360,-151.0,0.000167,2]
[339199204,1727303440369,-151.0,0.000167,2]
[339199205,1727303440378,-151.0,0.000167,2]
[339199206,1727303440388,-151.0,0.000167,2]
[339199207,1727303440397,-151.0,0.000167,2]
[339199208,1727303440408,-267.553827,0.000167,2]
[339199209,1727303440420,-151.0,0.000167,2]
[339199210,1727303440429,-151.0,0.000167,2]
[339199211,1727303440439,-201.27927931,0.00016718,2]
[339199212,1727303440448,-151.0,0.00016725,2]
[339199213,1727303440458,-151.0,0.00016725,2]
[339199214,1727303440468,-151.0,0.00016725,2]
[339199215,1727303440478,-151.0,0.00016725,2]
[339199216,1727303440487,-153.656172,0.00016725,2]
[339199217,1727303440496,-153.656172,0.00016725,2]
[339199218,1727303440507,-153.656172,0.00016725,2]
[339199219,1727303440517,-153.656172,0.00016725,2]
[339199220,1727303440527,-68363.1235561,0.00016725,2]
[339199221,1727303440537,-53048.9346362,0.00016725,2]
[339199222,1727303440546,-153.0,0.0001674,2]
[339199223,1727303440555,-153.0,0.0001674,2]
[339199224,1727303440564,-153.0,0.0001674,2]
[339199225,1727303440574,-153.0,0.0001674,2]
[339199226,1727303440584,-151.0,0.00016741,2]
[339199227,1727303440598,-174.902434,0.00016741,2]
[339199228,1727303440608,-174.902434,0.00016741,2]
[339199229,1727303440617,-151.0,0.00016741,2]
[339199230,1727303440627,-151.0,0.0001675,2]
[339199231,1727303440637,-151.0,0.0001675,2]
[339199232,1727303440647,-151.0,0.0001675,2]
[339199233,1727303440656,-172.225238,0.0001675,2]
[339199234,1727303440666,-151.0,0.0001675,2]
[339199235,1727303440676,-151.0,0.0001675,2]
[339199236,1727303440686,-175.147738,0.0001675,2]
[339199237,1727303440695,-175.147738,0.0001675,2]
[339199238,1727303440705,-157.101014,0.0001675,2]
[339199239,1727303440714,-151.0,0.0001675,2]
[339199240,1727303440724,-151.0,0.0001675,2]
[339199241,1727303440734,-153.656172,0.0001675,2]
[339199242,1727303440744,-153.656172,0.0001675,2]
[339199243,1727303440753,-153.656172,0.0001675,2]
[339199244,1727303440763,-153.656172,0.0001675,2]
[339199245,1727303440773,-68363.1235561,0.0001675,2]
[339199246,1727303440783,-53048.9346362,0.0001675,2]
[339199247,1727303440792,-1000.0,0.00016756,2]
[339199248,1727303440801,-164.199017,0.0001676,2]
[339199249,1727303440812,-164.199017,0.0001676,2]
[339199250,1727303440821,-164.199017,0.0001676,2]
[339199251,1727303440831,-164.199017,0.0001676,2]
[339199252,1727303440841,-151.0,0.0001676,2]
[339199253,1727303440850,-174.902434,0.0001676,2]
[339199254,1727303440860,-174.902434,0.0001676,2]
[339199255,1727303440869,-151.0,0.0001676,2]
[339199256,1727303440878,-151.0,0.0001676,2]
[339199257,1727303440888,-177.262078,0.0001676,2]
[339199258,1727303440897,-151.0,0.0001676,2]
[339199259,1727303440907,-151.0,0.0001676,2]
[339199260,1727303440916,-160.536182,0.0001676,2]
[339199261,1727303440925,-151.0,0.0001676,2]
[339199262,1727303440935,-151.0,0.0001676,2]
[339199263,1727303440944,-262.410832,0.0001676,2]
[339199264,1727303440953,-151.0,0.0001676,2]
[339199265,1727303440963,-151.0,0.0001676,2]
[339199266,1727303440973,-151.0,0.0001676,2]
[339199267,1727303440982,-284.457366,0.0001676,2]
[339199268,1727303440992,-187.534772,0.0001676,2]
[339199269,1727303441001,-151.0,0.0001676,2]
[339199270,1727303441011,-151.0,0.0001676,2]
[339199271,1727303441020,-175.147738,0.0001676,2]
[339199272,1727303441030,-175.147738,0.0001676,2]
[339199273,1727303441040,-175.147738,0.0001676,2]
[339199274,1727303441050,-175.147738,0.0001676,2]
[339199275,1727303441060,-162.5248212,0.00016769,2]
[339199276,1727303441069,-4354.72641962,0.00016769,2]
[339199277,1727303441078,-164.199017,0.0001677,2]
[339199278,1727303441088,-164.199017,0.0001677,2]
[339199279,1727303441098,-164.199017,0.0001677,2]
[339199280,1727303441107,-164.199017,0.0001677,2]
[339199281,1727303441117,-274.385458,0.0001677,2]
[339199282,1727303441127,-219.829086,0.0001677,2]
[339199283,1727303441136,-151.0,0.0001677,2]
[339199284,1727303441145,-151.0,0.0001677,2]
[339199285,1727303441154,-136726.247112,0.0001677,2]
[339199286,1727303441164,-106097.869272,0.0001677,2]
[339199287,1727303441174,-151.0,0.0001677,2]
[339199288,1727303441184,-151.0,0.0001677,2]
[339199289,1727303441194,-153.656172,0.0001677,2]
[339199290,1727303441203,-153.656172,0.0001677,2]
[339199291,1727303441213,-153.656172,0.0001677,2]
[339199292,1727303441222,-153.656172,0.0001677,2]
[339199293,1727303441232,-265.78957162,0.00016773,2]
[339199294,1727303441241,-500.0,0.00016773,2]
[339199295,1727303441250,-500.0,0.00016773,2]
[339199296,1727303441260,-500.0,0.00016773,2]
[339199297,1727303441270,-161.95168062,0.00016779,2]
[339199298,1727303441280,-99000.0,0.0001678,2]
[339199299,1727303441289,-164.199017,0.0001678,2]
[339199300,1727303441298,-164.199017,0.0001678,2]
[339199301,1727303441308,-174.902434,0.0001678,2]
[339199302,1727303441317,-174.902434,0.0001678,2]
[339199303,1727303441328,-151.0,0.0001678,2]
[339199304,1727303441337,-151.0,0.0001678,2]
[339199305,1727303441347,-175.147738,0.0001678,2]
[339199306,1727303441358,-175.147738,0.0001678,2]
[339199307,1727303441367,-201.950324,0.0001678,2]
[339199308,1727303441377,-153.656172,0.0001678,2]
[339199309,1727303441386,-153.656172,0.0001678,2]
[339199310,1727303441395,-466.11,0.000168,2]
[339199311,1727303441405,-287.692555,0.000168,2]
[339199312,1727303441414,-850.0,0.000168,2]
[339199313,1727303441424,-6638.33610057,0.00016966,2]
[339199314,1727303441434,-150.112233,0.00017,2]
[339199315,1727303441443,-883.63908517,0.00017321,2]
[339199316,1727303441455,-501.386949,0.00017321,2]
[339199317,1727303441464,-1000.0,0.00017321,2]
[339199318,1727303441473,-150.112233,0.000174,2]
[339199319,1727303441483,-150.790631,0.000176,2]
[339199320,1727303441492,-600.0,0.00017693,2]
[339199321,1727303441501,-150.112233,0.000177,2]
[339199322,1727303441512,-150.95099031,0.00017729,2]
[339199323,1727303441522,-151.0,0.00017731,2]
[339199324,1727303441531,-150.0,0.00017739,2]
[339199325,1727303441541,-525.0,0.00017739,2]
[339199326,1727303441551,-1217.0,0.00017739,2]
[339199327,1727303441727,-6385.505,0.00017747,2]
[339199328,1727303441737,-153.656172,0.00017798,2]
[339199329,1727303441748,-153.656172,0.00017798,2]
[339199330,1727303441758,-53048.9346362,0.00017798,2]
[339199331,1727303441767,-151.0,0.00017808,2]
[339199332,1727303441776,-151.0,0.00017808,2]
[339199333,1727303441785,-151.0,0.00017808,2]
[339199334,1727303441794,-151.0,0.00017808,2]
[339199335,1727303441803,-151.0,0.00017808,2]
[339199336,1727303441812,-151.0,0.00017808,2]
[339199337,1727303441821,-151.0,0.00017808,2]
[339199338,1727303441830,-242.186515,0.00017808,2]
[339199339,1727303441840,-150.0,0.00017809,2]
[339199340,1727303441849,-150.0,0.00017809,2]
[339199341,1727303441858,-150.0,0.00017809,2]
[339199342,1727303441868,-150.0,0.00017809,2]
[339199343,1727303441877,-600.0,0.00017877,2]
[339199344,1727303441886,-151.0,0.00017906,2]
[339199345,1727303441895,-150.112233,0.00018,2]
[339199346,1727303441906,-150.112233,0.00018,2]
[339199347,1727303441915,-600.0,0.00018061,2]
[339199348,1727303441925,-151.0,0.0001808,2]
[339199349,1727303441935,-150.112233,0.000181,2]
[339199350,1727303441946,-160.0,0.00018173,3]
[339199351,1727303441955,-158.488,0.00018173,2]
[339199352,1727303441965,-420.0,0.00018233,2]
[339199353,1727303441974,-2500.0,0.00018245,2]
[339199354,1727303441984,-600.0,0.00018246,2]
[339199355,1727303441994,-2500.0,0.00018254,2]
[339199356,1727303442003,-151.0,0.00018255,2]
[339199357,1727303442014,-151.0,0.00018262,2]
[339199358,1727303442024,-175.147738,0.00018262,2]
[339199359,1727303442033,-175.147738,0.00018262,2]
[339199360,1727303442043,-2500.0,0.00018262,2]
[339199361,1727303442053,-2500.0,0.00018271,2]
[339199362,1727303442063,-150.0,0.00018273,2]
[339199363,1727303442072,-2500.0,0.0001828,2]
[339199364,1727303442082,-151.0,0.0001829,2]
[339199365,1727303442092,-151.0,0.0001829,2]
[339199366,1727303442103,-53048.9346362,0.0001829,2]
[339199367,1727303442112,-153.656172,0.0001829,2]
[339199368,1727303442121,-153.656172,0.0001829,2]
[339199369,1727303442131,-28217.09075101,0.000183,2]
[339199370,1727303442141,-164.199017,0.000183,2]
[339199371,1727303442151,-164.199017,0.000183,2]
[339199372,1727303442163,-151.0,0.000183,2]
[339199373,1727303442172,-174.902434,0.000183,2]
[339199374,1727303442182,-174.902434,0.000183,2]
[339199375,1727303442191,-151.0,0.000183,2]
[339199376,1727303442202,-150.112233,0.000183,2]
[339199377,1727303442211,-151.0,0.000183,2]
[339199378,1727303442220,-175.147738,0.000183,2]
[339199379,1727303442230,-175.147738,0.000183,2]
[339199380,1727303442239,-153.656172,0.000183,2]
[339199381,1727303442249,-153.656181,0.000183,2]
[339199383,1727303442258,-1500.0,0.00018322,2]
[339199384,1727303442267,-160.0,0.00018384,4]
[339199385,1727303442276,-500.0,0.0001843,2]
[339199386,1727303442285,-500.0,0.0001843,2]
[339199387,1727303442294,-500.0,0.0001843,2]
[339199388,1727303442303,-500.0,0.0001843,2]
[339199389,1727303442313,-500.0,0.0001843,2]
[339199390,1727303442322,-500.0,0.0001843,2]
[339199391,1727303442332,-503.2073236,0.0001843,2]
[339199392,1727303442342,-151.0,0.0001843,2]
[339199393,1727303442353,-600.0,0.0001843,2]
[339199394,1727303442362,-160.0,0.00018595,5]
[339199395,1727303442371,-600.0,0.00018614,2]
[339199396,1727303442380,-150.112233,0.000187,2]
[339199397,1727303442389,-500.0,0.000187,2]
[339199398,1727303442398,-1129.5,0.00018799,2]
[339199399,1727303442408,-160.0,0.00018806,6]
[339199400,1727303442418,-250.0,0.00018821,2]
[339199401,1727303442427,-203320.74528292,0.0001888,10]
[339199402,1727303442436,-151.0,0.0001899,2]
[339199404,1727303442445,-174.902434,0.0001899,2]
[339199405,1727303442454,-174.902434,0.0001899,2]
[339199406,1727303442464,-151.0,0.0001899,2]
[339199408,1727303442474,-2000.0,0.00019,2]
[339199409,1727303442483,-1000.0,0.00019,19]
[339199410,1727303442492,-5000.0,0.00019,15]
[339199411,1727303442500,-1000.14645372,0.00019,2]
[339199412,1727303442511,-5833.76090021,0.00019,4]
[339199413,1727303442520,-164.199017,0.00019,2]
[339199414,1727303442530,-164.199017,0.00019,2]
[339199415,1727303442539,-150.112233,0.00019,2]
[339199416,1727303442548,-271.935364,0.00019,2]
[339199417,1727303442557,-175.147738,0.00019,2]
[339199418,1727303442566,-175.147738,0.00019,2]
[339199419,1727303442576,-160.0,0.00019017,7]
[339199420,1727303442585,-187.54692762,0.000191,12]
[339199421,1727303442594,-239.547097,0.00019178,2]
[339199422,1727303442603,-189.650857,0.00019178,2]
[339199423,1727303442613,-209.0875088,0.00019205,2]
[339199424,1727303442622,-160.0,0.00019228,8]
[339199425,1727303442631,-150.112233,0.000193,2]
[339199426,1727303442641,-153.0,0.00019342,2]
[339199427,1727303442650,-153.0,0.00019342,2]
[339199428,1727303442659,-153.0,0.00019342,2]
[339199429,1727303442669,-153.0,0.00019342,2]
[339199430,1727303442678,-153.0,0.00019342,2]
[339199431,1727303442688,-153.0,0.00019342,2]
[339199432,1727303442697,-153.0,0.00019342,2]
[339199433,1727303442706,-413.40311255,0.00019368,2]
[339199434,1727303442715,-160.0,0.00019439,9]
[339199435,1727303442725,-267.033423,0.00019539,2]
[339199436,1727303442734,-1521.95856966,0.0001962,2]
[339199437,1727303442743,-160.0,0.00019651,10]
[339199438,1727303442751,-150.112233,0.000197,2]
[339199439,1727303442761,-153.0,0.00019781,2]
[339199440,1727303442771,-153.0,0.00019781,2]
[339199441,1727303442779,-209.0875088,0.00019781,2]
[339199442,1727303442788,-153.0,0.00019781,2]
[339199443,1727303442798,-209.0875088,0.00019781,2]
[339199444,1727303442807,-153.0,0.00019781,2]
[339199445,1727303442817,-153.0,0.00019781,2]
[339199446,1727303442826,-209.0875088,0.00019781,2]
[339199447,1727303442835,-153.0,0.00019781,2]
[339199448,1727303442844,-153.0,0.00019781,2]
[339199449,1727303442854,-279.6601696,0.00019781,2]
[339199450,1727303442863,-450.0,0.000198,2]
[339199451,1727303442872,-160.0,0.00019862,11]
[339199452,1727303442882,-151.0,0.000199,2]
[339199453,1727303442893,-174.902434,0.000199,2]
[339199454,1727303442902,-174.902434,0.000199,2]
[339199455,1727303442912,-151.0,0.000199,2]
[339199456,1727303442922,-175.147738,0.000199,2]
[339199457,1727303442932,-175.147738,0.000199,2]
[339199458,1727303442942,-1934.54,0.000199,5]
[339199459,1727303442951,-13286.73,0.000199,6]